{"text_format":"1","workbook":"xlsx","n_sheets":1,"sheets":["ورقة1"],"not_rendered":{"charts":0,"images":0,"macros":0,"external_links":0,"defined_names":0,"comments":0,"pivot_tables":0},"unopened":[],"bounds":{"document_bytes":16777216,"sheet_cells":100000,"rows_first":2000,"rows_last":500,"rows_between":2000,"halvings":0,"cell_chars":16384,"cell_head_chars":4096},"cells_cut":0,"cells_raw":0,"read":"whole","date_system":"1900"}

{"sheet":"ورقة1","index":0,"n_rows":49,"n_cols":10,"rows_kept":49,"cut":false,"hidden":false,"merged":[[2,5,2,9]]}
["الاسم"]
["احمد"]
["محمد",null,null,null,null,"بالمعادلات"]
["علي"]
["حسن",null,null,null,null,{"$f":"INDEX($A$2:$A$49,ROW(A1)*5-5+COLUMN(A1))","v":"احمد"},{"$f":"INDEX($A$2:$A$49,ROW(B1)*5-5+COLUMN(B1))","v":"محمد"},{"$f":"INDEX($A$2:$A$49,ROW(C1)*5-5+COLUMN(C1))","v":"علي"},{"$f":"INDEX($A$2:$A$49,ROW(D1)*5-5+COLUMN(D1))","v":"حسن"},{"$f":"INDEX($A$2:$A$49,ROW(E1)*5-5+COLUMN(E1))","v":"محمد"}]
["محمد",null,null,null,null,{"$f":"INDEX($A$2:$A$49,ROW(A2)*5-5+COLUMN(A2))","v":"احمد"},{"$f":"INDEX($A$2:$A$49,ROW(B2)*5-5+COLUMN(B2))","v":"محمد"},{"$f":"INDEX($A$2:$A$49,ROW(C2)*5-5+COLUMN(C2))","v":"علي"},{"$f":"INDEX($A$2:$A$49,ROW(D2)*5-5+COLUMN(D2))","v":"احمد"},{"$f":"INDEX($A$2:$A$49,ROW(E2)*5-5+COLUMN(E2))","v":"محمد"}]
["احمد",null,null,null,null,"علي","حسن","احمد","محمد","علي"]
["محمد",null,null,null,null,"احمد","محمد","علي","حسن","احمد"]
["علي",null,null,null,null,"محمد","علي","حسن","محمد","احمد"]
["احمد",null,null,null,null,"محمد","علي","حسن","محمد","احمد"]
["محمد",null,null,null,null,"محمد","علي","احمد","محمد","علي"]
["علي",null,null,null,null,"حسن","احمد","محمد","علي","احمد"]
["حسن",null,null,null,null,"محمد","علي","حسن","احمد","محمد"]
["احمد",null,null,null,null,"علي","حسن","محمد"]
["محمد"]
["علي"]
["احمد"]
["محمد"]
["علي"]
["حسن"]
["احمد"]
["محمد"]
["علي"]
["حسن"]
["محمد"]
["احمد"]
["محمد"]
["علي"]
["حسن"]
["محمد"]
["احمد"]
["محمد"]
["علي"]
["احمد"]
["محمد"]
["علي"]
["حسن"]
["احمد"]
["محمد"]
["علي"]
["احمد"]
["محمد"]
["علي"]
["حسن"]
["احمد"]
["محمد"]
["علي"]
["حسن"]
["محمد"]